[Event "BAN-chT SAIF POWERTEC 2020"]
[Site "Dhaka"]
[Date "2021.03.29"]
[Round "11.11"]
[White "Hossain, Enamul"]
[Black "Mitrabha, Guha"]
[Result "0-1"]
[ECO "C16"]
[WhiteElo "2426"]
[BlackElo "2445"]
[Annotator "NA"]
[PlyCount "64"]
[EventDate "2021.03.19"]
[EventType "team-tourn"]
[EventCountry "BAN"]
[SourceTitle "playchess.com"]
[Source "ChessBase"]
[SourceQuality "1"]
[TimeControl "5400+30"]

{[%evp 12,61,45,41,32767,32767,32767,32767,32767,32767,44,43,103,120,32767,32767,32767,15,25,27,29,18,33,13,15,11,16,10,66,0,33,2,50,38,52,47,46,56,47,39,40,35,34,0,25,-13,0,-91,-87,-216,-260,-385]} 1. e4 {[%emt 1:30:30]} e6 {[%emt 1:30:30]} 2. d4 {[%emt 0:00:30]} d5 {[%emt 0:00:30]} 3. Nc3 {[%emt 0:00:30]} Bb4 {[%emt 0:00:30]} 4. e5 {[%emt 0:00:30]} b6 {[%emt 0:00:30]} 5. h4 {[%emt 0:00:30]} Qd7 {[%emt 0:00:30]} 6. h5 {[%emt 0:00:30]} Ba6 {[%emt 0:00:30]} 7. Bxa6 {[%emt 0:00:30]} Nxa6 {[%emt 0:00:30]} 8. Qd3 {[%emt 0:00:30]} Nb8 {[%emt 0:00:30]} 9. Nge2 {[%emt 0:00:30]} Nc6 {[%emt 0:00:30]} 10. Bd2 {[%emt 0:00:30]} O-O-O {[%emt 0:00:30]} 11. a3 {[%emt 0:00:30]} Bxc3 {[%emt 0:00:30]} 12. Bxc3 {[%emt 0:00:30]} ({Reject} 12. Nxc3 $6 f6 $11) 12... f6 {[%emt 0:00:30]} 13. f4 {[%emt 0:00:30]} Nh6 {[%emt 0:00:30]} 14. O-O-O {[%emt 0:00:30]} Kb7 {[%emt 0:00:30]} 15. Kb1 {[%emt 0:00:30]} f5 {[%emt 0:00:30]} 16. Ng1 {[%emt 0:00:30]} a5 {[%emt 0:00:30]} 17. Nf3 {[%emt 0:00:30]} Rdg8 {[%emt 0:00:30]} 18. Be1 {[%emt 0:00:30]} Ng4 {[%emt 0:00:30]} 19. Bh4 {[%emt 0:00:30]} Qe8 {[%emt 0:00:30]} ({Black should play} 19... Rc8 $11) 20. c4 {[%emt 0:00:30]} dxc4 {[%emt 0:00:30]} 21. Qd2 {[%emt 0:00:30]} h6 {[%emt 0:00:30]} 22. Rc1 {[%emt 0:00:30]} Qd7 {[%emt 0:00:30]} 23. Rxc4 {[%emt 0:00:30]} Rc8 {[%emt 0:00:30]} 24. Rhc1 {[%emt 0:00:30]} Na7 {[%emt 0:00:30]} 25. Ka1 {[%emt 0:00:30]} c6 {[%emt 0:00:30]} 26. Qd3 {[%emt 0:00:30]} Rc7 {[%emt 0:00:30]} 27. R4c2 {[%emt 0:00:30]} Qd5 {[%emt 0:00:30]} 28. a4 {[%emt 0:00:30]} c5 {[%emt 0:00:30]} 29. Be1 {[%emt 0:00:30] [#]} (29. Rc4 $11) 29... Rhc8 $1 {[%emt 0:00:30]} 30. Rc4 $2 {[%emt 0:00:30]} (30. Rd2 $15) 30... Nc6 $19 {[%emt 0:00:30]} 31. Bc3 {[%emt 0:00:30]} (31. R1c3 $142 Nb4 32. Qe2) 31... Ne3 {[%emt 0:00:30]} 32. Nd2 {[%emt 0:00:30]} cxd4 {[%emt 0:00:30]} 0-1

[Event "BAN-chT SAIF POWERTEC 2020"]
[Site "Dhaka"]
[Date "2021.03.29"]
[Round "11.12"]
[White "Koustav Chatterjee"]
[Black "Rahman, Taibur"]
[Result "1-0"]
[ECO "D30"]
[WhiteElo "2431"]
[BlackElo "2215"]
[Annotator "NA"]
[PlyCount "59"]
[EventDate "2021.03.19"]
[EventType "team-tourn"]
[EventCountry "BAN"]
[SourceTitle "playchess.com"]
[Source "ChessBase"]
[SourceQuality "1"]
[TimeControl "5400+30"]

{[%evp 17,40,67,75,81,70,68,80,71,71,57,116,104,112,106,164,142,170,169,160,109,32767,161,392,161,392]} 1. d4 {[%emt 1:30:30]} d5 {[%emt 1:30:30]} 2. c4 {[%emt 0:00:30]} e6 {[%emt 0:00:30]} 3. Nf3 {[%emt 0:00:30]} c5 {[%emt 0:00:30]} 4. cxd5 {[%emt 0:00:30]} exd5 {[%emt 0:00:30]} 5. g3 {[%emt 0:00:30]} Nc6 {[%emt 0:00:30]} 6. Bg2 {[%emt 0:00:30]} cxd4 {[%emt 0:00:30]} 7. Nxd4 {[%emt 0:00:30]} Bc5 {[%emt 0:00:30]} 8. Nxc6 {[%emt 0:00:30]} bxc6 {[%emt 0:00:30]} 9. Qc2 {[%emt 0:00:30]} Qb6 {[%emt 0:00:30]} 10. O-O {[%emt 0:00:30]} Ne7 {[%emt 0:00:30]} 11. Nc3 {[%emt 0:00:30]} Bd4 {[%emt 0:00:30]} 12. Na4 {[%emt 0:00:30]} Qb5 {[%emt 0:00:30]} 13. Rd1 {[%emt 0:00:30]} Bb6 {[%emt 0:00:30]} 14. Bg5 {[%emt 0:00:30]} f6 {[%emt 0:00:30]} 15. Bf4 {[%emt 0:00:30]} O-O {[%emt 0:00:30]} (15... Qc4 $16 16. Qxc4 dxc4) 16. Nxb6 {[%emt 0:00:30]} axb6 {[%emt 0:00:30]} 17. Bd6 {[%emt 0:00:30]} Ra7 {[%emt 0:00:30]} 18. Rac1 {[%emt 0:00:30]} Bf5 {[%emt 0:00:30]} 19. e4 {[%emt 0:00:30]} Bg4 $2 {[%emt 0:00:30]} (19... Bxe4 $16 {is a better defense.} 20. Bxe4 dxe4 21. Qxe4 Kf7) 20. Rd2 {[%emt 0:00:30]} (20. f3 $142) 20... Be6 $18 {[%emt 0:00:30]} (20... c5 $16 21. exd5 Rd8) 21. Bf1 {[%emt 0:00:30]} Qa5 {[%emt 0:00:30]} 22. b4 {[%emt 0:00:30]} Qa3 {[%emt 0:00:30]} 23. Rd3 {[%emt 0:00:30]} Qa6 {[%emt 0:00:30]} 24. exd5 {[%emt 0:00:30]} Bf5 {[%emt 0:00:30]} 25. dxc6 {[%emt 0:00:30]} Qc8 {[%emt 0:00:30]} 26. c7 {[%emt 0:00:30]} Re8 {[%emt 0:00:30]} 27. Bxe7 {[%emt 0:00:30]} Bxd3 {[%emt 0:00:30]} 28. Bxd3 {[%emt 0:00:30]} Rxe7 {[%emt 0:00:30]} 29. Bf5 {[%emt 0:00:30]} Raxc7 {[%emt 0:00:30]} 30. Bxc8 {[%emt 0:00:30]} 1-0